fUSD/lending_fUSD_20240514
["ID","MTS","AMOUNT","RATE_DAILY","PERIOD"]
[326985482,1715680784561,-3235.29,0.0004,120]
[326985483,1715680784586,-1851.82818753,0.0004,90]
[326985484,1715680784609,-195.17964919,0.0004,120]
[326985485,1715680784634,-500.0,0.0004,30]
[326985486,1715680784658,-1217.47403837,0.0004,120]
[326985487,1715680784682,-186.21321009,0.0004,60]
[326985488,1715680784707,-309.6429966,0.0004001,30]
[326985489,1715680784733,-391330.49123167,0.0004025,60]
[326985490,1715680784757,-215.64477092,0.0004025,30]
[326985491,1715680784782,-2422.2,0.00040327,79]
[326985492,1715680784806,-8071.35852536,0.0004048,60]
[326985493,1715680784829,-1000.0,0.00040487,30]
[326985494,1715680784853,-5290.63097472,0.000405,30]
[326985495,1715680784877,-500000.0,0.0004075,60]
[326985496,1715680784901,-1000.0,0.00040791,30]
[326985497,1715680784925,-604.36312831,0.0004088,120]
[326985498,1715680784948,-1681.19700152,0.0004088,30]
[326985499,1715680784970,-177.87858972,0.000409,60]
[326985500,1715680784994,-2500.0,0.000409,30]
[326985501,1715680785019,-162.50014418,0.000409,60]
[326985502,1715680785042,-175.09857921,0.000409,60]
[326985503,1715680785065,-995.97253991,0.00040993,120]
[326985504,1715680785092,-50000.0,0.00041,31]
[326985505,1715680785115,-622.31141414,0.00041,120]
[326985506,1715680785138,-1849.27484868,0.00041,30]
[326985507,1715680785162,-234.56286975,0.00041,30]
[326985508,1715680785186,-2840.0,0.00041,30]
[326985509,1715680785210,-166.79,0.00041,120]
[326985510,1715680785234,-14325.97420852,0.00041,60]
[326985511,1715680785260,-562.89134692,0.00041,30]
[326985512,1715680785285,-1000.0,0.00041,120]
[326985513,1715680785312,-1000000.0,0.00041,30]
[326985514,1715680785338,-1000000.0,0.00041,30]
[326985515,1715680785363,-1000000.0,0.00041,30]
[326985516,1715680785386,-36835.30735489,0.00041,60]
[326985517,1715680785409,-11158.58047475,0.00041,30]
[326985518,1715680785434,-76241.64405097,0.00041,60]
[326985519,1715680785459,-360000.0,0.00041,60]
[326985520,1715680785484,-150.0,0.00041,37]
[326985521,1715680785507,-1059.3257578,0.00041041,120]
[326985522,1715680785532,-1000.0,0.00041095,30]
[326985523,1715680785556,-1021.17029073,0.00041095,30]
[326985524,1715680785579,-510.0,0.00041095,120]
[326985525,1715680785603,-1102.76059238,0.00041096,30]
[326985526,1715680785629,-500.0,0.00041096,30]
[326985527,1715680785652,-615.05847778,0.00041369,120]
[326985528,1715680785676,-406.66515874,0.000415,60]
[326985529,1715680785699,-233.78340929,0.000415,30]
[326985530,1715680785723,-184.67675714,0.0004158,120]
[326985531,1715680785747,-500.0,0.00041712,30]
[326985532,1715680785770,-1871.68112718,0.0004188,30]
[326985533,1715680785794,-1035.0,0.00041895,30]
[326985534,1715680785817,-1035.0,0.00041895,30]
[326985535,1715680785842,-2687.30327348,0.00041898,52]
[326985536,1715680785865,-452.96688107,0.000419,111]
[326985537,1715680785890,-587.40920262,0.000419,120]
[326985538,1715680785918,-50000.0,0.00042,32]
[326985539,1715680785942,-550.0,0.00042,120]
[326985540,1715680785965,-2000.0,0.00042,30]
[326985541,1715680785989,-988.0,0.00042,30]
[326985542,1715680786012,-1010.0,0.00042,60]
[326985543,1715680786036,-2207.90135882,0.00042,30]
[326985544,1715680786058,-7919.30677629,0.00042,90]
[326985545,1715680786085,-1055.0,0.00042,120]
[326985546,1715680786108,-2203.9674527,0.00042,60]
[326985547,1715680786131,-2005.41,0.00042,30]
[326985548,1715680786155,-3077.99581789,0.00042,120]
[326985549,1715680786178,-741.0,0.00042,120]
[326985550,1715680786202,-200.0,0.00042,49]
[326985551,1715680786226,-500.0,0.00042338,30]
[326985552,1715680786254,-377.89,0.00042489,30]
[326985553,1715680786279,-1489.4823087,0.00042534,120]
[326985554,1715680786303,-569.78850159,0.0004267,30]
[326985555,1715680786327,-438.25135492,0.00042698,120]
[326985556,1715680786559,-258.61838945,0.00042698,90]
[326985557,1715680786584,-342.98449634,0.00042698,90]
[326985558,1715680786608,-170.87,0.0004274,91]
[326985559,1715680786633,-367.98313324,0.000429,30]
[326985560,1715680786657,-2500.0,0.000429,30]
[326985561,1715680786682,-510.73735298,0.00042973,30]
[326985562,1715680786709,-50000.0,0.00043,33]
[326985563,1715680786734,-1050.0,0.00043,120]
[326985564,1715680786758,-500.0,0.00043,30]
[326985565,1715680786782,-460.3255541,0.00043,30]
[326985566,1715680786806,-419.0,0.00043,120]
[326985567,1715680786830,-229.61600215,0.00043,120]
[326985568,1715680786854,-4000.0,0.00043,120]
[326985569,1715680786877,-480.38793003,0.00043,30]
[326985570,1715680786902,-35257.42392688,0.00043234,31]
[326985571,1715680786925,-321.0,0.000436,120]
[326985572,1715680786952,-2642.4,0.00043653,98]
[326985573,1715680786977,-200.0,0.00043836,30]
[326985574,1715680787002,-1035.0,0.0004399,30]
[326985575,1715680787026,-1035.0,0.0004399,30]
[326985576,1715680787057,-50000.0,0.00044,34]
[326985577,1715680787083,-607.84717865,0.00044,30]
[326985578,1715680787107,-950.0,0.00044,120]
[326985579,1715680787275,-5114.5138432,0.00044,120]
[326985580,1715680787300,-1673.744785,0.00044,44]
[326985581,1715680787326,-1805.75,0.00044384,120]
[326985582,1715680787351,-1689.32,0.00044384,120]
[326985583,1715680787375,-149752.99097557,0.0004444,30]
[326985584,1715680787398,-181.92151899,0.000449,30]
[326985585,1715680787423,-2500.0,0.000449,30]
[326985586,1715680787447,-238.5585849,0.000449,120]
[326985587,1715680787471,-669.90562476,0.000449,120]
[326985588,1715680787495,-150.11818864,0.0004498,30]
[326985589,1715680787527,-50000.0,0.00045,35]
[326985590,1715680787550,-150.0,0.00045,85]
[326985591,1715680787573,-192.85725473,0.00045,30]
[326985592,1715680787597,-151.0,0.00045,120]
[326985593,1715680787621,-151.0,0.00045,120]
[326985594,1715680787647,-1551.55472464,0.00045,30]
[326985595,1715680787670,-452.999994,0.00045,120]
[326985596,1715680787694,-594.62429726,0.00045,45]
[326985597,1715680787716,-331.4096313,0.00045,30]
[326985598,1715680787738,-643.91334714,0.00045,120]
[326985599,1715680787760,-2278.13952828,0.00045,120]
[326985600,1715680787783,-37145.69812508,0.00045,30]
[326985601,1715680792257,-1901901.89123489,0.00045,30]
[326985602,1715680792281,-850.0,0.00045,120]
[326985603,1715680792307,-150.0,0.00045,120]
[326985604,1715680792331,-2123.5202563,0.00045,120]
[326985605,1715680792356,-1321.31434303,0.00045,30]
[326985606,1715680792379,-151.47187406,0.00045,90]
[326985607,1715680792403,-46159.56436256,0.00045,31]
[326985608,1715680792426,-500.0,0.00045,30]
[326985609,1715680792449,-42655.93422163,0.00045,30]
[326985610,1715680792472,-349.34751013,0.00045,120]
[326985611,1715680792495,-1275.6105396,0.00045,120]
[326985612,1715680792524,-1320.5639168,0.00045,120]
[326985613,1715680792548,-1000.0,0.00045,45]
[326985614,1715680792572,-1000.0,0.00045,45]
[326985615,1715680792595,-2000.0,0.00045,45]
[326985616,1715680792618,-413444.01244411,0.00045,30]
[326985617,1715680792642,-1000.0,0.00045,120]
[326985618,1715680792666,-28290.30123579,0.00045,30]
[326985619,1715680792690,-1481.46954984,0.00045,30]
[326985620,1715680792714,-412.85655779,0.00045,30]
[326985621,1715680792738,-1307.55601722,0.00045,30]
[326985622,1715680792761,-149999.0,0.00045,30]
[326985623,1715680792787,-60599.60283283,0.00045,30]
[326985624,1715680792811,-39983.70998256,0.00045,30]
[326985625,1715680792834,-149999.0,0.00045,30]
[326985626,1715680792858,-149999.0,0.00045,30]
[326985627,1715680792882,-250000.01,0.00045,45]
[326985628,1715680792906,-149999.0,0.00045,30]
[326985629,1715680792930,-33499.05777949,0.00045,30]
[326985630,1715680792953,-149999.0,0.00045,30]
[326985631,1715680792978,-149999.0,0.00045,30]
[326985632,1715680793001,-149999.0,0.00045,30]
[326985633,1715680793029,-149999.0,0.00045,30]
[326985634,1715680793054,-149999.0,0.00045,30]
[326985635,1715680793079,-149999.0,0.00045,30]
[326985636,1715680793105,-377.89,0.00045605,90]
[326985637,1715680793130,-151.0,0.00045699,120]
[326985638,1715680793154,-151.895746,0.000458,48]
[326985639,1715680793184,-50000.0,0.00046,36]
[326985640,1715680793209,-1000.0,0.00046,30]
[326985641,1715680793236,-750.0,0.00046,120]
[326985642,1715680793265,-9821.0,0.00046,60]
[326985643,1715680793294,-1298.86,0.00046,120]
[326985644,1715680793319,-500.0,0.00046,60]
[326985645,1715680793347,-500.0,0.00046,60]
[326985646,1715680793372,-500.0,0.00046,60]
[326985647,1715680793397,-500.0,0.00046,60]
[326985648,1715680793629,-500.0,0.00046,60]
[326985649,1715680793655,-500.0,0.00046,60]
[326985650,1715680793680,-500.0,0.00046,60]
[326985651,1715680793704,-500.0,0.00046,60]
[326985652,1715680793729,-500.0,0.00046,60]
[326985653,1715680793755,-500.0,0.00046,60]
[326985654,1715680793780,-500.0,0.00046,60]
[326985655,1715680793805,-500.0,0.00046,60]
[326985656,1715680793830,-500.0,0.00046,60]
[326985657,1715680793855,-500.0,0.00046,60]
[326985658,1715680793880,-500.0,0.00046,60]
[326985659,1715680793906,-500.0,0.00046,60]
[326985660,1715680793931,-500.0,0.00046,60]
[326985661,1715680793958,-500.0,0.00046,60]
[326985662,1715680793983,-500.0,0.00046,60]
[326985663,1715680794008,-500.0,0.00046,60]
[326985664,1715680794035,-500.0,0.00046,60]
[326985665,1715680794060,-500.0,0.00046,60]
[326985666,1715680794085,-500.0,0.00046,60]
[326985667,1715680794111,-500.0,0.00046,60]
[326985668,1715680794137,-500.0,0.00046,60]
[326985669,1715680794162,-500.0,0.00046,60]
[326985670,1715680794201,-500.0,0.00046,60]
[326985671,1715680794230,-500.0,0.00046,60]
[326985672,1715680794257,-500.0,0.00046,60]
[326985673,1715680794284,-500.0,0.00046,60]
[326985674,1715680794311,-500.0,0.00046,60]
[326985675,1715680794338,-500.0,0.00046,60]
[326985676,1715680794364,-500.0,0.00046,60]
[326985677,1715680794391,-500.0,0.00046,60]
[326985678,1715680794416,-500.0,0.00046,60]
[326985679,1715680794444,-500.0,0.00046,60]
[326985680,1715680794469,-500.0,0.00046,60]
[326985681,1715680794496,-500.0,0.00046,60]
[326985682,1715680794527,-500.0,0.00046,60]
[326985683,1715680794556,-500.0,0.00046,60]
[326985684,1715680794584,-500.0,0.00046,60]
[326985685,1715680794610,-500.0,0.00046,60]
[326985686,1715680794637,-500.0,0.00046,60]
[326985687,1715680794665,-500.0,0.00046,60]
[326985688,1715680794691,-500.0,0.00046,60]
[326985689,1715680794716,-500.0,0.00046,60]
[326985690,1715680794741,-500.0,0.00046,60]
[326985691,1715680794767,-500.0,0.00046,60]
[326985692,1715680794798,-500.0,0.00046,60]
[326985693,1715680794823,-500.0,0.00046,60]
[326985694,1715680794849,-500.0,0.00046,60]
[326985695,1715680794874,-500.0,0.00046,60]
[326985696,1715680794905,-500.0,0.00046,60]
[326985697,1715680794932,-500.0,0.00046,60]
[326985698,1715680794958,-500.0,0.00046,60]
[326985699,1715680794984,-500.0,0.00046,60]
[326985700,1715680795012,-500.0,0.00046,60]
[326985701,1715680795039,-500.0,0.00046,60]
[326985702,1715680795066,-500.0,0.00046,60]
[326985703,1715680795092,-690.0,0.00046,60]
[326985704,1715680795118,-1000.0,0.00046,120]
[326985705,1715680795144,-246.0,0.00046,96]
[326985706,1715680795170,-941.69328721,0.000461,120]
[326985707,1715680795195,-151.0,0.00046164,120]
[326985708,1715680795221,-1035.0,0.00046189,30]
[326985709,1715680795249,-1035.0,0.00046189,30]
[326985710,1715680795278,-404.869498,0.00046381,30]
[326985711,1715680795310,-404.869498,0.00046381,30]
[326985712,1715680795338,-151.0,0.00046384,120]
[326985713,1715680795365,-568122.12731216,0.000464,30]
[326985714,1715680804183,-379.01955908,0.0004,30]
[326985715,1715680804208,-155.0,0.0004,120]
[326985716,1715680804232,-215.64477092,0.0004,30]
[326985717,1715680804259,-714.0,0.0004,60]
[326985718,1715680804293,-216.0,0.000461,120]
[326985719,1715680804318,-161.0,0.000461,120]
[326985720,1715680804345,-2480877.87268784,0.000464,30]
[326985721,1715680804369,-2100.0,0.000464,30]
[326985722,1715680804394,-161.0,0.000464,120]
[326985723,1715680804417,-200.0,0.00046575,30]
[326985724,1715680804441,-4342.07454641,0.000468,48]
[326985725,1715680804464,-50000.0,0.000468,30]
[326985726,1715680804488,-1860.60630836,0.000468,60]
[326985727,1715680804513,-2500.0,0.000469,30]
[326985728,1715680804538,-2862.6,0.0004698,117]
[326985729,1715680804562,-405.25938696,0.00046986,120]
[326985730,1715680804588,-50000.0,0.00047,37]
[326985731,1715680804611,-650.0,0.00047,120]
[326985732,1715680804635,-15920.70873798,0.00047,60]
[326985733,1715680804658,-508.9589534,0.00047,120]
[326985734,1715680804681,-1000.0,0.00047,120]
[326985735,1715680804706,-151.0,0.00047068,120]
[326985736,1715680804729,-404.869498,0.00047084,30]
[326985737,1715680804752,-404.869498,0.00047084,30]
[326985738,1715680804777,-911.4631192,0.000473,120]
[326985739,1715680804802,-151.0,0.00047315,120]
[326985740,1715680804825,-10201.44139881,0.0004748,120]
[326985741,1715680804848,-526.88559676,0.000475,120]
[326985742,1715680804872,-162.28282888,0.000475,90]
[326985743,1715680804897,-50000.0,0.000477,30]
[326985744,1715680804922,-151.0,0.00047753,120]
[326985745,1715680804946,-404.869498,0.00047786,30]
[326985746,1715680804969,-404.869498,0.00047786,30]
[326985747,1715680804996,-50000.0,0.00048,38]
[326985748,1715680805020,-500.0,0.00048,120]
[326985749,1715680805044,-20000.0,0.00048,30]
[326985750,1715680805069,-583.29462556,0.00048,90]
[326985751,1715680805093,-539.9078437,0.00048,120]
[326985752,1715680805117,-162.90110976,0.00048,120]
[326985753,1715680805141,-550.0,0.00048,120]
[326985754,1715680805165,-10035.0,0.00048,30]
[326985755,1715680805188,-1000.0,0.00048,120]
[326985756,1715680805213,-1000.0,0.00048,120]
[326985757,1715680805237,-1000.0,0.00048,120]
[326985758,1715680805263,-1000.0,0.00048,120]
[326985759,1715680805288,-1000.0,0.00048,120]
[326985760,1715680805314,-1000.0,0.00048,120]
[326985761,1715680805338,-1000.0,0.00048,120]
[326985762,1715680805363,-1000.0,0.00048,120]
[326985763,1715680805387,-1000.0,0.00048,120]
[326985764,1715680805411,-1000.0,0.00048,120]
[326985765,1715680805435,-2000.0,0.00048,30]
[326985766,1715680805458,-61644.66335272,0.00048,120]
[326985767,1715680805482,-500.0,0.00048,30]
[326985768,1715680805506,-158.56,0.00048,120]
[326985769,1715680805535,-6225.34411247,0.00048,30]
[326985770,1715680805558,-5518.0,0.00048,90]
[326985771,1715680805581,-458.0,0.00048,120]
[326985772,1715680805605,-725.19,0.00048,120]
[326985773,1715680805628,-17103.527437,0.000482,30]
[326985774,1715680805652,-675.68,0.000483,120]
[326985775,1715680805676,-151.0,0.00048438,120]
[326985776,1715680805699,-151.0,0.00048466,120]
[326985777,1715680805722,-404.869498,0.00048489,30]
[326985778,1715680805745,-404.869498,0.00048489,30]
[326985779,1715680805770,-2695.371,0.00048498,60]
[326985780,1715680805798,-1035.0,0.00048499,30]
[326985781,1715680805824,-1035.0,0.00048499,30]
[326985782,1715680805851,-10120.76467592,0.000485,50]
[326985783,1715680805880,-9000.0,0.000485,120]
[326985784,1715680805907,-500000.0,0.0004869,120]
[326985785,1715680805933,-377.89,0.0004872,90]
[326985786,1715680805958,-15000.00000495,0.0004876,30]
[326985787,1715680805986,-19847.76875081,0.000488,30]
[326985788,1715680806012,-155.60839643,0.000488,120]
[326985789,1715680806039,-949937.17697005,0.000488,60]
[326985790,1715680806064,-228.96,0.000488,120]
[326985791,1715680806089,-4267.05780515,0.000488,120]
[326985792,1715680806113,-642.65311997,0.000488,120]
[326985793,1715680806137,-39425.21229101,0.000488,30]
[326985794,1715680806160,-253.90784401,0.0004884,120]
[326985795,1715680806184,-578381.52577789,0.0004889,30]
[326985813,1715681432674,-239.38744252,8.987e-05,2]
[326985816,1715681432684,-155.0,8.988e-05,2]
[326985817,1715681432693,-2916.1324472,8.999e-05,2]
[326985819,1715681432702,-328.06617012,9.007e-05,2]
[326985821,1715681432712,-298.41171956,0.0001,2]
[326985822,1715681432721,-150.0,0.00011458,2]
[326985823,1715681432730,-250.0,0.00011472,2]
[326985824,1715681432739,-163.07,0.00011504,2]
[326985825,1715681432749,-150.0,0.00011523,2]
[326985826,1715681432758,-4450.12575559,0.00011524,2]
[326985842,1715681438368,-545.03939917,0.00011524,2]
[326985844,1715681438380,-3362.28484524,0.00011524,2]
[326985846,1715681438390,-499.99,0.00011524,2]
[326985848,1715681438399,-1675.05,0.00011527,2]
[326985850,1715681438409,-1000.0,0.00011559,2]
[326985852,1715681438418,-250.0,0.00011643,2]
[326985854,1715681438427,-797.65,0.00011643,2]
[326985856,1715681438437,-517.24,0.00011645,2]
[326985858,1715681438446,-4831.83141018,0.00011659,2]
[326985861,1715681438461,-806.6587237,0.00011659,2]
[326985863,1715681438472,-873.81182588,0.00011659,2]
[326985864,1715681438647,-368.4034386,0.00011659,2]
[326985865,1715681438658,-17009.29460164,0.00011659,2]
[326985866,1715681438668,-189.42,0.00011795,2]
[326985867,1715681438678,-202.43475,0.00012226,2]
[326985868,1715681438687,-202.43475,0.00012226,2]
[326985869,1715681438696,-151.826062,0.00012226,2]
[326985870,1715681438706,-151.826061,0.00012226,2]
[326985871,1715681438715,-473.99230712,0.000123,2]
[326985872,1715681438724,-999.99,0.000123,2]
[326985873,1715681438733,-1112.22,0.000123,4]
[326985874,1715681438742,-210.31,0.00012399,2]
[326985875,1715681438751,-2385.05,0.00012399,2]
[326985876,1715681438761,-151.826062,0.00012474,2]
[326985877,1715681438769,-151.826061,0.00012474,2]
[326985878,1715681438778,-1409.82367348,0.000125,4]
[326985879,1715681438788,-252.25206425,0.0001272,2]
[326985880,1715681438797,-151.826062,0.00012721,2]
[326985881,1715681438806,-151.826061,0.00012721,2]
[326985882,1715681438815,-659.5783,0.000128,2]
[326985883,1715681438824,-2361.76986435,0.000128,2]
[326985884,1715681438833,-7372.10376585,0.00012809,2]
[326985885,1715681438842,-519.38974842,0.00012876,2]
[326985886,1715681438851,-500.0,0.00012876,2]
[326985887,1715681438860,-500.0,0.00012876,2]
[326985888,1715681438870,-1000.0,0.00012896,2]
[326985890,1715681438879,-500.0,0.00012896,2]
[326985893,1715681438888,-1000.0,0.00012898,2]
[326985896,1715681438897,-344.68046229,0.00012899,2]
[326985898,1715681438905,-17919.0734,0.000129,2]
[326985900,1715681438915,-7645.2924,0.000129,2]
[326985902,1715681438923,-1674.7609,0.000129,2]
[326985904,1715681438932,-223.1888,0.000129,2]
[326985906,1715681438941,-10000.0,0.000129,2]
[326985908,1715681438951,-37192.92131353,0.000129,2]
[326985910,1715681438960,-202.43475,0.00012968,2]
[326985911,1715681438969,-202.43475,0.00012968,2]
[326985912,1715681438977,-151.826062,0.00012968,2]
[326985913,1715681438987,-151.826061,0.00012968,2]
[326985914,1715681438996,-250.0,0.00012986,2]
[326985915,1715681439005,-4840.11610549,0.00012996,2]
[326985916,1715681439017,-56574.30549311,0.00012996,2]
[326985917,1715681439028,-1171.11856861,0.00012996,2]
[326985929,1715681442893,-566178.54124023,0.00012996,2]
[326985938,1715681443246,-6094.27729119,0.00012996,2]
[326985965,1715681445810,-1680.6391544,0.00012996,2]
[326985966,1715681446020,-1207.22335713,0.00012996,2]
[326985967,1715681446032,-1050.0,0.00012996,2]
[326985968,1715681446235,-1558.928556,0.00012996,2]
[326986317,1715682237610,150.0,8.348e-05,2]
[326986318,1715682237632,17.96,8.348e-05,2]
[326986319,1715682239125,-168.85307182,8.729e-05,2]
[326986320,1715682239697,-150.0,8.729e-05,2]
[326986321,1715682240261,-150.0,8.728e-05,2]
[326986322,1715682241218,-150.0,8.728e-05,2]
[326986323,1715682241770,-150.0,8.728e-05,2]
[326986324,1715682242997,-150.0,8.728e-05,2]
[326986325,1715682243526,-150.0,8.728e-05,2]
[326986326,1715682244506,-150.0,8.728e-05,2]
[326986327,1715682245314,-150.0,8.728e-05,2]
[326986328,1715682245910,-150.0,8.728e-05,2]
[326986329,1715682246652,-150.0,8.728e-05,2]
[326986330,1715682247413,-150.0,8.728e-05,2]
[326986331,1715682248241,-243.86870397,8.728e-05,2]
[326986332,1715682248966,-150.0,8.728e-05,2]
[326986333,1715682249683,-150.0,8.728e-05,2]
[326986334,1715682250117,-150.0,8.728e-05,2]
[326986335,1715682250848,-27.11227848,8.728e-05,2]
[326986336,1715682250868,-122.88772152,8.728e-05,2]
[326986337,1715682251302,-32.11227848,8.728e-05,2]
[326986338,1715682251324,-117.88772152,8.729e-05,2]
[326986344,1715682466639,1846.563413,8.178e-05,2]
[326986349,1715682561030,1000.0,0.0003,120]
[326986356,1715682600251,150.0,7.802e-05,2]
[326986357,1715682600273,150.0,7.802e-05,2]
[326986358,1715682600295,150.0,7.802e-05,2]
[326986359,1715682600315,150.0,7.802e-05,2]
[326986360,1715682600336,150.0,7.802e-05,2]
[326986361,1715682600357,150.0,7.802e-05,2]
[326986362,1715682600378,150.0,7.802e-05,2]
[326986363,1715682600399,150.0,7.802e-05,2]
[326986364,1715682600418,150.0,7.802e-05,2]
[326986365,1715682600439,81.18,7.802e-05,2]
[326986366,1715682604035,-370.90762048,8.51e-05,2]
[326986367,1715682604062,-210.59691578,8.51e-05,2]
[326986368,1715682606082,1786.23,7.82e-05,2]
[326986369,1715682606679,-613.67464631,8.51e-05,2]
[326986370,1715682607621,23900.0,7.82e-05,2]
[326986371,1715682608217,-155.10195676,8.51e-05,2]
[326986388,1715682633423,-783.21738638,8.507e-05,2]
[326986389,1715682633434,-321.34456172,8.508e-05,2]
[326986390,1715682633444,-155.0,8.508e-05,2]
[326986391,1715682633454,-8364.82190366,8.508e-05,2]
[326986392,1715682633464,-3282.80859403,8.509e-05,2]
[326986393,1715682633473,-2108.87929993,8.51e-05,2]
[326986394,1715682633482,-4425.97225171,8.51e-05,2]
[326986395,1715682633491,-938.73301466,8.51e-05,2]
[326986396,1715682633500,-239.38744252,8.512e-05,2]
[326986397,1715682633509,-150.0,8.512e-05,2]
[326986398,1715682633518,-10972.93643675,8.516e-05,2]
[326986399,1715682633527,-8927.68414901,8.517e-05,2]
[326986400,1715682633536,-322.058447,8.517e-05,2]
[326986401,1715682633545,-322.05844698,8.568e-05,2]
[326986402,1715682633554,-322.05844698,8.618e-05,2]
[326986403,1715682633563,-423.02647658,8.625e-05,2]
[326986404,1715682633572,-324.47,8.666e-05,2]
[326986405,1715682633581,-324.47,8.69e-05,2]
[326986406,1715682633590,-324.47,8.713e-05,2]
[326986407,1715682633600,-370.7502431,8.725e-05,2]
[326986408,1715682633609,-405.7270393,8.726e-05,2]
[326986409,1715682633619,-269139.00651714,8.727e-05,2]
[326986410,1715682633628,-1003.4058341,8.728e-05,2]
[326986411,1715682633637,-324.47,8.737e-05,2]
[326986412,1715682633646,-324.47,8.761e-05,2]
[326986413,1715682633655,-324.47,8.785e-05,2]
[326986414,1715682633665,-324.47,8.808e-05,2]
[326986415,1715682633675,-324.47,8.832e-05,2]
[326986416,1715682633684,-324.47,8.856e-05,2]
[326986417,1715682633693,-324.47,8.88e-05,2]
[326986418,1715682633702,-324.47,8.903e-05,2]
[326986419,1715682633712,-10305.37,8.909e-05,2]
[326986420,1715682633721,-1788.03912655,8.926e-05,2]
[326986421,1715682633730,-324.47,8.927e-05,2]
[326986422,1715682633739,-324.47,8.951e-05,2]
[326986423,1715682633748,-324.47,8.975e-05,2]
[326986424,1715682633758,-324.47,8.998e-05,2]
[326986425,1715682633768,-324.47,9.022e-05,2]
[326986426,1715682633777,-324.47,9.046e-05,2]
[326986428,1715682633786,-324.47,9.07e-05,2]
[326986429,1715682633796,-324.47,9.093e-05,2]
[326986430,1715682633805,-324.47,9.117e-05,2]
[326986431,1715682633819,-200.0,9.195e-05,2]
[326986432,1715682633829,-210.0,9.363e-05,2]
[326986433,1715682633838,-39888.22,9.67e-05,2]
[326986434,1715682633847,-999.99,9.67e-05,2]
[326986435,1715682633858,-2385.05,9.67e-05,2]
[326986436,1715682633868,-499.99,9.67e-05,2]
[326986437,1715682633877,-1112.22,9.67e-05,4]
[326986438,1715682633887,-167.96,9.739e-05,2]
[326986439,1715682633895,-194.0,0.00010299,2]
[326986440,1715682633905,-200.0,0.00010344,2]
[326986442,1715682633915,-250.0,0.00010381,2]
[326986444,1715682633924,-596.24,0.00010403,2]
[326986446,1715682633934,-1000.0,0.00010411,2]
[326986448,1715682633943,-784.93,0.00010411,2]
[326986450,1715682633952,-153.42,0.00010418,2]
[326986452,1715682633961,-963.49,0.00010424,2]
[326986454,1715682633970,-168.24,0.00010425,2]
[326986456,1715682633979,-9677.16,0.00010453,2]
[326986458,1715682633988,-1620.72,0.00010455,2]
[326986460,1715682633998,-250.0,0.00010703,2]
[326986462,1715682634007,-200.0,0.00010723,2]
[326986464,1715682634016,-800.0,0.00010957,2]
[326986465,1715682634025,-788.96,0.00010959,2]
[326986467,1715682634034,-157.79,0.00010959,2]
[326986469,1715682634043,-168.82,0.00011107,2]
[326986471,1715682634052,-167.96,0.00011131,2]
[326986473,1715682634061,-224.99,0.00011214,2]
[326986475,1715682634070,-303.57,0.00011271,2]
[326986477,1715682634079,-200.0,0.00011493,2]
[326986479,1715682634088,-168.24,0.00011729,2]
[326986481,1715682634097,-190.46950754,0.00012,2]
[326986483,1715682634107,-168.695625,0.00012226,2]
[326986485,1715682634116,-151.826062,0.00012226,2]
[326986487,1715682634125,-168.695624,0.00012226,2]
[326986489,1715682634134,-473.99230712,0.000123,2]